bitfinex/quotes_BTCUSD_20260125
["timestamp","ask_amount","ask_price","bid_price","bid_amount"]
[1769364224864,0.17484,87916.0,87901.0,0.2316383]
[1769364225506,0.64012052,87916.0,87901.0,0.2316383]
[1769364225660,0.17484,87916.0,87901.0,0.2316383]
[1769364225919,0.46528052,87915.0,87901.0,0.2316383]
[1769364231214,0.17484,87918.0,87901.0,0.2316383]
[1769364231428,0.17484,87918.0,87902.0,0.2316383]
[1769364231636,0.64012052,87918.0,87902.0,0.2316383]
[1769364232384,0.36137799,87900.0,87890.0,0.29698924]
[1769364232837,0.46528052,87899.0,87890.0,0.29698924]
[1769364233312,0.21675623,87899.0,87890.0,0.29698924]
[1769364233493,0.21675623,87898.0,87883.0,0.00047335]
[1769364233668,0.46868817,87897.0,87884.0,0.07452195]
[1769364234480,0.46868817,87896.0,87884.0,0.07452195]
[1769364239905,0.46821955,87894.0,87871.0,0.4065183]
[1769364240117,0.21675623,87891.0,87877.0,0.01137954]
[1769364240324,0.00047267,87894.0,87876.0,0.13646366]
[1769364240325,0.46821955,87888.0,87876.0,0.13646366]
[1769364240722,0.46821955,87888.0,87876.0,0.14784333]
[1769364241159,0.46821955,87888.0,87878.0,0.05689941]
[1769364241368,0.46821955,87888.0,87879.0,0.02047427]
[1769364241583,0.46821955,87888.0,87879.0,0.03185355]
[1769364242389,0.46821955,87888.0,87880.0,0.01137915]
[1769364242590,0.46821955,87888.0,87879.0,0.03185355]
[1769364243040,0.46821955,87888.0,87880.0,0.01137915]
[1769364243217,0.36137839,87887.0,87880.0,0.03649649]
[1769364243467,0.36137839,87887.0,87880.0,0.02511734]
[1769364244830,0.36137839,87887.0,87881.0,0.01137902]
[1769364245042,0.36137839,87887.0,87882.0,0.01137889]
[1769364245255,0.00047267,87894.0,87891.0,1.0526316]
[1769364245432,0.00047267,87894.0,87892.0,0.11160278]
[1769364246626,0.00047267,87894.0,87893.0,0.05688735]
[1769364246831,1.30905763,87913.0,87896.0,0.01137708]
[1769364247027,1.30905763,87913.0,87900.0,0.29698924]
[1769364247028,0.22503007,87912.0,87900.0,0.29698924]
[1769364247252,1.08402756,87911.0,87900.0,0.29713112]
[1769364247554,1.30905763,87911.0,87900.0,0.29713112]
[1769364247956,1.30905763,87911.0,87900.0,0.37036655]
[1769364248586,1.30905763,87911.0,87900.0,0.07337731]
[1769364249601,1.08402756,87927.0,87900.0,0.37036655]
[1769364249754,0.0003769,87928.0,87900.0,0.37036655]
[1769364249755,0.22503007,87924.0,87900.0,0.37036655]
[1769364249986,0.22503007,87920.0,87900.0,0.37036655]
[1769364250201,1.08402756,87917.0,87900.0,0.29713112]
[1769364250419,0.22503007,87914.0,87900.0,0.29713112]
[1769364250594,1.30905763,87912.0,87900.0,0.29713112]
[1769364251903,1.08402756,87912.0,87900.0,0.00014188]
[1769364252110,0.22503007,87909.0,87900.0,0.00014188]
[1769364252334,1.08402756,87908.0,87900.0,0.00014188]
[1769364253168,1.08402756,87925.0,87903.0,0.01137617]
[1769364253379,1.30905763,87925.0,87910.0,0.29698924]
[1769364253580,0.22503007,87924.0,87910.0,0.29698924]
[1769364254747,0.22503007,87924.0,87911.0,0.01137514]
[1769364254945,1.08402756,87925.0,87911.0,0.12297792]
[1769364255149,0.0003769,87928.0,87916.0,0.21708185]
[1769364255380,0.0003769,87928.0,87918.0,0.29698924]
[1769364255727,0.0003769,87928.0,87916.0,0.21708185]
[1769364256040,0.0003769,87928.0,87916.0,0.39188185]
[1769364256236,0.0003769,87928.0,87920.0,0.01137397]
[1769364256466,0.0003769,87928.0,87922.0,0.21704185]
[1769364257807,0.0003769,87928.0,87922.0,0.22841556]
[1769364258011,0.0003769,87928.0,87923.0,0.01137358]
[1769364258214,0.0003769,87928.0,87924.0,1.33062195]
[1769364258424,0.0003769,87928.0,87925.0,0.11160278]
[1769364262519,1.02916379,87937.0,87925.0,0.11160278]
[1769364262758,0.23082938,87938.0,87925.0,0.11160278]
[1769364263426,0.23082938,87938.0,87925.0,0.11051278]
[1769364263640,1.02987689,87937.0,87925.0,0.11051278]
[1769364263904,1.02987689,87937.0,87926.0,0.11160278]
[1769364269594,0.01,87926.0,87916.0,0.1748]
[1769364270153,1.02987689,87925.0,87916.0,0.1748]
[1769364270356,0.01,87926.0,87916.0,0.1748]
[1769364270357,1.25893906,87923.0,87917.0,0.00861774]
[1769364270554,1.25893906,87923.0,87909.0,0.00024185]
[1769364271385,1.25893906,87923.0,87910.0,0.29698924]
[1769364272857,0.29698924,87920.0,87907.0,0.17476]
[1769364273030,0.0458087,87939.0,87907.0,0.17476]
[1769364273031,1.01933604,87921.0,87908.0,0.017476]
[1769364273611,1.01933604,87921.0,87910.0,0.29698924]
[1769364274010,0.22783194,87924.0,87910.0,0.22690924]
[1769364274227,1.24716798,87924.0,87910.0,0.22690924]
[1769364274427,1.01933604,87922.0,87908.0,0.017476]
[1769364274631,1.01933604,87922.0,87909.0,0.01602541]
[1769364274953,1.24716798,87922.0,87909.0,0.01602541]
[1769364275171,1.04508813,87922.0,87909.0,0.01602541]
[1769364276366,1.0438422,87922.0,87909.0,0.01602541]
[1769364278191,0.8443973,87922.0,87909.0,0.01602541]
[1769364278396,0.8443973,87922.0,87910.0,0.017476]
[1769364282876,0.22783194,87927.0,87910.0,0.017476]
[1769364283318,0.62059307,87926.0,87910.0,0.02088165]
[1769364283526,0.0458087,87939.0,87910.0,0.02088165]
[1769364283527,0.22783194,87937.0,87920.0,0.22230997]
[1769364283680,0.22783194,87937.0,87921.0,1.29202374]
[1769364283880,0.22783194,87937.0,87921.0,1.28861852]
[1769364284084,0.0002887,87939.0,87925.0,0.22230997]
[1769364284431,0.0002887,87939.0,87925.0,1.28861852]
[1769364284582,0.0002887,87939.0,87926.0,0.017476]
[1769364284764,0.22783194,87937.0,87926.0,0.017476]
[1769364284942,0.22783194,87937.0,87917.0,0.22230997]
[1769364284943,0.62289544,87936.0,87917.0,0.22230997]
[1769364285147,0.62289544,87929.0,87910.0,0.22230997]
[1769364285562,0.62289544,87929.0,87911.0,1.28861852]
[1769364285763,0.62289544,87929.0,87912.0,0.22230997]
[1769364285963,0.62289544,87929.0,87912.0,1.28861852]
[1769364286927,0.62289544,87929.0,87913.0,0.00337526]
[1769364287895,0.62289544,87929.0,87912.0,0.22230997]
[1769364288107,0.29698924,87930.0,87907.0,0.17476]
[1769364288108,0.61995516,87925.0,87907.0,0.17476]
[1769364288463,0.29698924,87930.0,87909.0,0.13646366]
[1769364288622,0.61995516,87927.0,87909.0,0.13646366]
[1769364288824,0.61995516,87923.0,87906.0,0.13646366]
[1769364289420,0.8477871,87923.0,87906.0,0.13646366]
[1769364290175,0.22783194,87917.0,87903.0,0.17476]
[1769364290384,0.61995516,87914.0,87903.0,0.17476]
[1769364291391,0.61995516,87914.0,87900.0,0.00014188]
[1769364291621,0.8477871,87914.0,87900.0,0.00014188]
[1769364292386,0.22783194,87914.0,87900.0,0.00014188]
[1769364292589,0.61995516,87913.0,87900.0,0.00014188]
[1769364301190,0.43748765,87913.0,87900.0,0.00014188]
[1769364302209,0.22783194,87921.0,87906.0,0.01137578]
[1769364302412,0.22783194,87935.0,87911.0,1.06630855]
[1769364302664,0.10223263,87944.0,87920.0,0.29694258]
[1769364302665,0.78071575,87934.0,87920.0,0.29694258]
[1769364302903,0.04552,87944.0,87920.0,1.5855611]
[1769364302904,0.84194427,87940.0,87920.0,1.5855611]
[1769364303142,0.43931233,87940.0,87929.0,0.29694258]
[1769364303347,0.21343886,87942.0,87924.0,1.08879343]
[1769364303554,0.21343886,87942.0,87925.0,0.22292253]
[1769364303758,0.44341576,87941.0,87925.0,0.22292253]
[1769364304372,0.00043053,87939.0,87925.0,0.22292253]
[1769364306054,0.00043053,87939.0,87920.0,0.29694258]
[1769364306251,0.44341576,87938.0,87918.0,0.22292253]
[1769364306485,0.65685462,87938.0,87918.0,0.22292253]
[1769364306675,0.65685462,87938.0,87919.0,0.22292253]
[1769364306865,0.00043053,87939.0,87919.0,0.22292253]
[1769364306866,0.44341576,87937.0,87919.0,0.22292253]
[1769364307056,0.44341576,87936.0,87919.0,0.22292253]
[1769364307931,0.21343886,87935.0,87911.0,0.22292253]
[1769364308141,0.00043053,87939.0,87911.0,1.08879343]
[1769364308142,0.65685462,87933.0,87911.0,1.08879343]
[1769364308344,0.44341576,87929.0,87912.0,0.22292253]
[1769364308690,0.21343886,87933.0,87913.0,1.08879343]
[1769364308884,0.44341576,87932.0,87914.0,0.35938619]
[1769364310588,0.44341576,87932.0,87915.0,1.08879343]
[1769364310782,0.44341576,87932.0,87915.0,1.31171596]
[1769364311576,0.44341576,87932.0,87916.0,0.01137449]
[1769364311767,0.00043053,87939.0,87920.0,0.29694258]
[1769364311951,0.00043053,87939.0,87924.0,1.08879343]
[1769364312304,0.00043053,87939.0,87926.0,1.31171596]
[1769364312523,0.00043053,87939.0,87929.0,0.29694258]
[1769364312741,0.0004,87950.0,87929.0,0.29694258]
[1769364312742,0.0004,87950.0,87938.0,1.08879343]
[1769364312966,0.0004,87950.0,87942.0,1.08879343]
[1769364313174,0.0004,87950.0,87943.0,1.08879343]
[1769364314206,0.0004,87950.0,87936.0,0.1861319]
[1769364314207,0.0004,87952.0,87945.0,0.13646366]
[1769364314412,0.21383886,87968.0,87950.0,0.22292253]
[1769364314640,1.2880963,87968.0,87950.0,0.22292253]
[1769364316366,1.2880963,87968.0,87951.0,0.22424788]
[1769364316805,1.005521,87963.0,87941.0,1.08336722]
[1769364317016,0.01,87951.0,87946.0,0.13646366]
[1769364318138,1.005521,87955.0,87946.0,0.13646366]
[1769364318762,1.22641161,87960.0,87946.0,0.13646366]
[1769364319187,1.005921,87958.0,87954.0,0.06]
[1769364319389,1.22681161,87958.0,87954.0,0.05]
[1769364319606,0.22089061,87957.0,87954.0,0.05]
[1769364319808,1.005521,87956.0,87954.0,0.05]
[1769364322722,0.22089061,87957.0,87954.0,0.05]
[1769364323345,1.005921,87958.0,87954.0,0.05]
[1769364324980,1.005921,87958.0,87942.0,0.13800081]
[1769364325398,1.005921,87958.0,87942.0,0.14422944]
[1769364326010,1.005921,87958.0,87942.0,0.14443437]
[1769364326856,1.005921,87958.0,87901.0,0.0002415]
[1769364326857,0.22089061,87908.0,87901.0,0.0002415]
[1769364327073,0.22089061,87908.0,87859.0,0.0002301]
[1769364327074,0.1306727,87883.0,87870.0,1.21983088]
[1769364327275,0.09503165,87895.0,87874.0,1.08336722]
[1769364327495,0.09503165,87895.0,87884.0,0.13646366]
[1769364329651,0.08503165,87895.0,87884.0,0.13646366]
[1769364330887,0.22089061,87898.0,87884.0,0.13646366]
[1769364331095,0.01137578,87906.0,87887.0,1.08336722]
[1769364331296,1.22641161,87906.0,87888.0,0.21348926]
[1769364331505,1.22641161,87906.0,87889.0,1.21983088]
[1769364332366,1.23778739,87906.0,87889.0,1.21983088]
[1769364332717,1.22641161,87906.0,87889.0,1.21983088]
[1769364333284,0.22089061,87906.0,87889.0,1.21983088]
[1769364335097,0.25054976,87913.0,87890.0,0.19645547]
[1769364335321,0.25054976,87913.0,87893.0,1.07831259]
[1769364335676,0.25054976,87913.0,87895.0,1.07831259]
[1769364335814,0.25054976,87912.0,87896.0,0.04552]
[1769364336014,1.41657432,87911.0,87896.0,0.04552]
[1769364336216,0.25054976,87910.0,87896.0,0.04552]
[1769364336820,0.0001935,87915.0,87899.0,1.07831259]
[1769364337024,0.0001935,87915.0,87901.0,1.07831259]
[1769364342290,0.0001935,87915.0,87899.0,0.18711052]
[1769364342497,0.25074326,87915.0,87899.0,0.18711052]
[1769364342715,0.26211788,87915.0,87899.0,0.18711052]
[1769364343176,0.26211788,87915.0,87899.0,0.18756962]
[1769364343358,0.25074326,87915.0,87899.0,0.18756962]
[1769364346028,0.25074326,87915.0,87899.0,0.0177166]
[1769364346219,0.25074326,87915.0,87898.0,0.13646366]
[1769364346220,1.15464942,87912.0,87898.0,0.13646366]
[1769364346427,0.27322354,87909.0,87898.0,0.13646366]
[1769364346631,0.0001935,87915.0,87896.0,3e-08]
[1769364346632,0.27322354,87905.0,87896.0,3e-08]
[1769364346843,1.42787296,87904.0,87896.0,3e-08]
[1769364347092,1.42787296,87904.0,87898.0,0.13646366]
[1769364347315,1.15464942,87914.0,87898.0,0.13646366]
[1769364347499,0.27547234,87911.0,87898.0,0.13646366]
[1769364347702,0.27547234,87910.0,87898.0,0.13646366]
[1769364347919,1.15464942,87909.0,87898.0,0.13646366]
[1769364348120,0.27547234,87907.0,87898.0,0.13646366]
[1769364348823,1.43012176,87907.0,87898.0,0.13646366]
[1769364349973,1.19429578,87907.0,87898.0,0.13646366]
[1769364351476,0.27996962,87906.0,87898.0,0.13646366]
[1769364351684,0.27996962,87905.0,87898.0,0.13646366]
[1769364351899,0.27996962,87905.0,87898.0,0.10296226]
[1769364352108,0.27996962,87895.0,87873.0,0.01138005]
[1769364352330,0.01123829,87871.0,87870.0,0.35379795]
[1769364352536,1.15464942,87881.0,87874.0,0.22032]
[1769364352742,0.27996962,87880.0,87879.0,0.13646366]
[1769364352953,1.43461904,87880.0,87879.0,0.13646366]
[1769364353984,1.33523284,87880.0,87879.0,0.13646366]
[1769364354206,0.18058342,87880.0,87879.0,0.13646366]
[1769364355556,0.18058342,87880.0,87879.0,2e-08]
[1769364355954,0.18058342,87880.0,87875.0,0.13646366]
[1769364356378,0.18058342,87880.0,87875.0,0.14784346]
[1769364356587,0.18058342,87880.0,87875.0,0.13646366]
[1769364356795,1.15464942,87884.0,87875.0,0.14784346]
[1769364357019,0.25054976,87886.0,87876.0,0.22032]
[1769364358024,1.40519918,87892.0,87876.0,0.22032]
[1769364358290,0.25054976,87899.0,87877.0,1.16502784]
[1769364358504,0.25054976,87899.0,87877.0,0.09809479]
[1769364358712,1.15464942,87897.0,87878.0,1.07831259]
[1769364358913,1.40519918,87897.0,87878.0,1.07831259]
[1769364359878,0.25054976,87896.0,87878.0,1.07831259]
[1769364363219,0.25054976,87896.0,87879.0,0.22032]
[1769364364966,0.25054976,87896.0,87880.0,0.0007358]
[1769364367675,0.25054976,87896.0,87880.0,0.00635096]
[1769364371672,0.29689571,87900.0,87875.0,0.08671525]
[1769364371673,0.00635095,87880.0,87875.0,0.08671525]
[1769364371894,0.00635095,87880.0,87876.0,0.22032]
[1769364372107,0.29689571,87890.0,87876.0,0.22032]
[1769364372795,0.29580571,87890.0,87876.0,0.22032]
[1769364373376,0.29580571,87890.0,87876.0,0.220095]
[1769364374566,0.29580571,87890.0,87876.0,1.3645699]
[1769364374770,0.29689571,87890.0,87876.0,1.3645699]
[1769364375612,0.29689571,87890.0,87877.0,0.22032]
[1769364376882,1.14537542,87896.0,87878.0,1.10661866]
[1769364378314,0.24591156,87897.0,87880.0,0.29689571]
[1769364378544,0.24591156,87897.0,87881.0,1.39320786]
[1769364379600,1.06284013,87896.0,87881.0,0.2865892]
[1769364379829,1.06284013,87896.0,87881.0,0.22036]
[1769364382216,0.24591156,87897.0,87881.0,1.32697866]
[1769364383307,0.24591156,87897.0,87882.0,1.10661866]
[1769364386134,0.24591156,87897.0,87883.0,0.00114736]
[1769364388572,0.24591156,87897.0,87883.0,0.00228468]
[1769364389511,1.06284013,87909.0,87887.0,0.29689571]
[1769364389753,0.35946204,87908.0,87890.0,1.10661866]
[1769364389900,0.11355048,87907.0,87891.0,0.00228447]
[1769364390106,0.35946204,87907.0,87891.0,0.00228447]
[1769364390493,0.11355048,87906.0,87891.0,0.00228447]
[1769364391299,0.13065487,87907.0,87891.0,0.00228447]
[1769364392441,0.13065487,87907.0,87892.0,0.04552]
[1769364393049,1.22273576,87907.0,87892.0,0.04552]
[1769364394563,0.23834071,87906.0,87892.0,0.04552]
[1769364395672,0.88743349,87907.0,87892.0,0.04552]
[1769364398708,0.0002257,87916.0,87893.0,0.22032]
[1769364398899,0.0002257,87916.0,87900.0,1.16247558]
[1769364399218,0.0002257,87916.0,87901.0,0.24578046]
[1769364399824,0.0002257,87916.0,87902.0,1.16247558]
[1769364400037,0.00033318,87916.0,87902.0,1.16247558]
[1769364400183,0.00033318,87916.0,87901.0,0.24578046]
[1769364400184,1.09208089,87915.0,87901.0,0.24578046]
[1769364403853,1.09208089,87915.0,87896.0,0.01137708]
[1769364404035,1.09208089,87913.0,87896.0,0.01137708]
[1769364404235,1.09208089,87908.0,87884.0,0.01137863]
[1769364404578,0.23834071,87898.0,87885.0,0.36816216]
[1769364404782,1.09208089,87898.0,87885.0,0.35678366]
[1769364404996,0.23834071,87897.0,87885.0,0.35678366]
[1769364405212,0.23834071,87897.0,87886.0,0.01137837]
[1769364405423,0.23834071,87897.0,87886.0,0.06827023]
[1769364405822,0.23834071,87897.0,87888.0,0.01137811]
[1769364406052,0.23834071,87897.0,87889.0,0.01137798]
[1769364406269,0.23834071,87897.0,87890.0,0.01137785]
[1769364406492,0.23834071,87897.0,87889.0,0.01137798]
[1769364406694,0.23834071,87897.0,87890.0,0.01137785]
[1769364407734,1.09208089,87903.0,87891.0,0.01137772]
[1769364407939,0.23834071,87902.0,87891.0,0.01137772]
[1769364408137,0.23834071,87902.0,87892.0,0.22032]
[1769364408675,0.04102518,87902.0,87892.0,0.22032]
[1769364410623,0.04102518,87902.0,87892.0,0.23169759]
[1769364410830,0.04102518,87902.0,87894.0,0.01137734]
[1769364411075,1.3304216,87909.0,87893.0,0.24578046]
[1769364411249,1.3304216,87909.0,87893.0,0.25715793]
[1769364411442,1.3304216,87909.0,87894.0,0.01137734]
[1769364411819,1.3304216,87909.0,87895.0,0.04552]
[1769364412456,1.3304216,87909.0,87895.0,0.05689721]
[1769364412879,1.3304216,87909.0,87896.0,0.01137708]
[1769364413090,1.3304216,87909.0,87895.0,0.05689721]
[1769364413388,1.3304216,87909.0,87896.0,0.01137708]
[1769364414447,1.3304216,87909.0,87895.0,0.05689721]
[1769364414565,1.3304216,87909.0,87896.0,0.01137708]
[1769364415003,0.00033318,87916.0,87895.0,0.27306207]
[1769364415210,0.00033318,87916.0,87900.0,1.16247558]
[1769364415427,0.00033318,87916.0,87899.0,0.30832741]
[1769364415428,1.09208089,87915.0,87899.0,0.30832741]
[1769364415650,1.09208089,87915.0,87897.0,0.24578046]
[1769364415848,1.09208089,87913.0,87897.0,0.25715741]
[1769364416067,1.09208089,87913.0,87896.0,0.01137708]
[1769364416261,1.3304216,87912.0,87896.0,0.01137708]
[1769364416473,0.00033318,87916.0,87901.0,1.17385201]
[1769364416715,0.00033318,87916.0,87902.0,0.0113763]
[1769364417211,0.00033318,87916.0,87905.0,0.01137591]
[1769364417414,0.00033318,87916.0,87906.0,0.1748]
[1769364417654,0.00033318,87916.0,87909.0,0.01137539]
[1769364417985,0.00033318,87916.0,87908.0,0.01137552]
[1769364418195,0.00033318,87916.0,87907.0,0.01137565]
[1769364418626,0.00033318,87916.0,87906.0,0.43195624]
[1769364419223,0.00033318,87916.0,87906.0,0.48883455]
[1769364419582,0.00033318,87916.0,87907.0,0.01137565]
[1769364419925,0.00033318,87916.0,87908.0,0.01137552]
[1769364420127,0.00033318,87916.0,87907.0,0.01137565]
[1769364420704,0.00033318,87916.0,87908.0,0.01137552]
[1769364420912,0.00033318,87916.0,87909.0,0.00055617]
[1769364421117,0.00033318,87916.0,87908.0,0.00055617]
[1769364421327,0.00033318,87916.0,87908.0,0.01193169]
[1769364421529,0.00033318,87916.0,87910.0,0.01137527]
[1769364421648,0.00033318,87916.0,87909.0,0.05689539]
[1769364421861,0.00033318,87916.0,87909.0,0.04552]
[1769364423426,0.00033318,87916.0,87907.0,0.00055617]
[1769364423651,0.00033318,87916.0,87910.0,0.1748]
[1769364424497,0.29718302,87930.0,87910.0,0.1748]
[1769364424700,0.23891591,87928.0,87910.0,0.1748]
[1769364425007,1.08366872,87925.0,87910.0,0.1748]
[1769364425216,0.23891591,87922.0,87910.0,0.1748]
[1769364425357,1.32258463,87920.0,87910.0,0.1748]
[1769364435892,1.32258463,87920.0,87901.0,0.24578046]
[1769364436041,1.32258463,87920.0,87886.0,0.22756509]
[1769364436042,1.13659442,87910.0,87890.0,0.22025254]
[1769364436252,0.29695072,87911.0,87891.0,0.22028]
[1769364436253,1.13659442,87906.0,87891.0,0.22028]
[1769364436484,1.34922739,87904.0,87891.0,0.22028]
[1769364437392,1.34922739,87904.0,87891.0,0.23165772]
[1769364437624,1.34922739,87904.0,87891.0,0.22028]
[1769364437985,0.21263297,87904.0,87894.0,0.01137734]
[1769364438305,1.34922739,87911.0,87892.0,0.01137759]
[1769364438751,1.34922739,87911.0,87893.0,0.01137747]
[1769364438953,1.34922739,87911.0,87895.0,0.01137721]
[1769364439107,1.34922739,87911.0,87896.0,0.01137708]
[1769364439310,1.34922739,87911.0,87897.0,0.01137695]
[1769364439533,1.34922739,87911.0,87898.0,0.01137682]
[1769364439938,1.34922739,87911.0,87899.0,0.01137669]
[1769364440280,1.34922739,87911.0,87898.0,0.01137682]
[1769364440433,1.34922739,87911.0,87899.0,0.01137669]
[1769364440604,1.34922739,87911.0,87901.0,0.01137643]
[1769364440810,1.34922739,87911.0,87900.0,0.01137656]
[1769364441016,1.34922739,87911.0,87901.0,0.01137643]
[1769364441224,0.21263297,87918.0,87902.0,0.0113763]
[1769364441474,0.21263297,87917.0,87900.0,0.30832728]
[1769364441685,1.34922739,87916.0,87900.0,0.01137656]
[1769364441935,1.34922739,87916.0,87901.0,0.01137643]
[1769364442139,1.34922739,87916.0,87900.0,0.01137656]
[1769364442314,1.34922739,87916.0,87899.0,0.01137669]
[1769364442513,0.21263297,87915.0,87899.0,0.01137669]
[1769364442714,1.34922739,87915.0,87900.0,0.01137656]
[1769364443523,1.34922739,87915.0,87899.0,0.01137669]
[1769364444124,1.34922739,87915.0,87902.0,0.0113763]
[1769364444325,4.725e-05,87920.0,87903.0,1.34598004]
[1769364444524,4.725e-05,87920.0,87905.0,0.01137591]
[1769364444722,4.725e-05,87920.0,87906.0,0.1748]
[1769364445712,1.13659442,87919.0,87906.0,0.1748]
[1769364445923,0.21263297,87918.0,87906.0,0.1748]
[1769364446138,1.13659442,87917.0,87906.0,0.1748]
[1769364450321,1.13686432,87917.0,87906.0,0.1748]
[1769364456602,0.0002699,87917.0,87906.0,0.1748]
[1769364460932,0.88640033,87918.0,87906.0,0.1748]
[1769364461349,4.725e-05,87920.0,87907.0,1.08579263]
[1769364462162,4.725e-05,87920.0,87911.0,0.01137514]
[1769364462371,1.06977073,87939.0,87918.0,1.08579263]
[1769364462559,0.20426338,87942.0,87924.0,1.08579263]
[1769364462760,0.20426338,87942.0,87924.0,1.28597504]
[1769364463752,0.000159,87945.0,87931.0,1.28592779]
[1769364463952,0.000159,87945.0,87932.0,0.17476]
[1769364465345,0.20426338,87950.0,87932.0,0.17476]
[1769364465539,1.27403411,87949.0,87932.0,0.17476]
[1769364466537,1.06977073,87949.0,87932.0,0.17476]
[1769364466744,0.20426338,87948.0,87932.0,0.17476]
[1769364466947,1.27403411,87948.0,87932.0,0.17476]
[1769364473314,1.27403411,87948.0,87932.0,0.18613242]
[1769364473521,1.27403411,87948.0,87933.0,0.01137229]
[1769364473724,0.20426338,87956.0,87938.0,0.29695072]
[1769364473926,0.20426338,87956.0,87940.0,1.28592779]
[1769364474296,0.20426338,87956.0,87940.0,1.29729917]
[1769364474522,0.20426338,87956.0,87940.0,1.28592779]
[1769364475206,1.06977073,87955.0,87940.0,0.20013516]
[1769364475415,1.06977073,87955.0,87940.0,0.49708588]
[1769364475611,1.27403411,87955.0,87936.0,1.08579263]
[1769364475821,0.20426338,87954.0,87936.0,1.08579263]
[1769364476171,1.27403411,87954.0,87936.0,1.08579263]
[1769364477126,1.06977073,87952.0,87935.0,0.20013516]
[1769364477325,0.0002522,87957.0,87932.0,0.17476]
[1769364477326,1.06977073,87950.0,87932.0,0.17476]
[1769364477547,1.27403411,87950.0,87932.0,0.17476]
[1769364478356,1.27403411,87950.0,87933.0,0.04552]
[1769364479320,1.06977073,87948.0,87934.0,0.17472]
[1769364479545,0.0002522,87957.0,87934.0,0.17472]
[1769364479546,0.20426338,87945.0,87934.0,0.17472]
[1769364479670,1.06977073,87945.0,87934.0,0.17472]
[1769364479872,1.27403411,87945.0,87934.0,0.17472]
[1769364481099,1.10704883,87945.0,87934.0,0.17472]
[1769364481724,0.87089352,87945.0,87934.0,0.17472]
[1769364482118,0.20426338,87944.0,87934.0,0.17472]
[1769364482318,0.95150169,87941.0,87934.0,0.17472]
[1769364482519,0.20426338,87939.0,87934.0,0.17472]
[1769364482741,0.20426338,87937.0,87934.0,0.17472]
[1769364484048,0.99453864,87935.0,87934.0,0.01922226]
[1769364484407,0.99453864,87935.0,87934.0,0.01611232]
[1769364484901,0.19697972,87935.0,87934.0,0.01611232]
[1769364486030,0.29662653,87950.0,87928.0,0.04552]
[1769364486236,0.19697972,87928.0,87910.0,0.01137527]
[1769364486441,0.19697972,87928.0,87910.0,0.29662653]
[1769364486641,0.19697972,87924.0,87910.0,0.29662653]
[1769364486776,0.19708723,87924.0,87910.0,0.29662653]
[1769364486974,0.19708723,87924.0,87910.0,0.3080018]
[1769364487215,0.19708723,87924.0,87911.0,0.01137514]
[1769364487597,0.19708723,87924.0,87911.0,0.06825077]
[1769364488206,0.19708723,87924.0,87912.0,0.01137501]
[1769364488450,0.19708723,87924.0,87911.0,0.01137514]
[1769364488654,0.19708723,87924.0,87910.0,1.39304997]
[1769364489035,0.19708723,87924.0,87910.0,1.40442524]
[1769364489375,0.19708723,87924.0,87911.0,0.01137514]
[1769364489580,0.19708723,87924.0,87910.0,1.40442524]
[1769364490288,0.19708723,87924.0,87910.0,1.39304997]
[1769364491323,0.19697972,87948.0,87917.0,1.09642344]
[1769364491536,1.06627291,87945.0,87930.0,0.29662653]
[1769364491762,0.01,87917.0,87905.0,0.37692468]
[1769364491966,0.01,87917.0,87908.0,0.01137552]
[1769364492134,1.07098653,87923.0,87907.0,0.01137565]
[1769364492345,1.07098653,87923.0,87906.0,0.19082877]
[1769364492546,1.06627291,87928.0,87910.0,0.29662653]
[1769364492747,1.26325263,87928.0,87910.0,0.29662653]
[1769364492907,1.26325263,87928.0,87910.0,0.29673404]
[1769364493559,1.26325263,87928.0,87910.0,0.30810931]
[1769364493767,0.001,87945.0,87928.0,0.01137294]
[1769364494178,0.001,87945.0,87935.0,0.19082877]
[1769364494395,0.83585932,87954.0,87935.0,0.19082877]
[1769364494636,0.0004,87958.0,87940.0,0.29662653]
[1769364494824,0.03651707,87961.0,87942.0,1.09642344]
[1769364495027,0.87237639,87961.0,87943.0,0.19082877]
[1769364495847,0.87251821,87961.0,87943.0,0.19082877]
[1769364496276,0.83585932,87959.0,87938.0,0.01137164]
[1769364496476,0.83585932,87959.0,87940.0,0.20238077]
[1769364496857,0.83585932,87959.0,87940.0,0.21375215]
[1769364497066,0.83585932,87959.0,87942.0,0.01137113]
[1769364497328,0.83585932,87959.0,87942.0,0.2137519]
[1769364497542,0.83585932,87959.0,87942.0,0.20238077]
[1769364497964,0.83585932,87959.0,87942.0,0.2137519]
[1769364498394,0.00014182,87961.0,87945.0,0.01137074]
[1769364498611,0.00014182,87961.0,87946.0,0.21375138]
[1769364498827,0.00014182,87961.0,87946.0,0.20238077]
[1769364498828,0.29662653,87960.0,87946.0,0.20238077]
[1769364499046,0.29662653,87960.0,87946.0,0.21375138]
[1769364499257,0.29662653,87960.0,87947.0,0.01137048]
[1769364499464,0.29662653,87960.0,87946.0,0.21375138]
[1769364500312,0.29662653,87960.0,87947.0,0.01137048]
[1769364500717,0.29662653,87960.0,87948.0,0.01137035]
[1769364500918,0.29662653,87960.0,87947.0,0.01137048]
[1769364501157,0.29662653,87960.0,87948.0,0.01137035]
[1769364501384,0.29662653,87960.0,87949.0,0.01137022]
[1769364502014,0.29662653,87960.0,87948.0,0.01137035]
[1769364502267,0.0004,87966.0,87959.0,0.01136893]
[1769364502477,0.0004,87966.0,87960.0,0.21374957]
[1769364502478,0.00050746,87966.0,87960.0,0.21374957]
[1769364502692,0.00050746,87966.0,87962.0,0.20238077]
[1769364502901,0.00050746,87966.0,87963.0,0.20238077]
[1769364503560,0.00050746,87966.0,87963.0,0.21374918]
[1769364503982,0.00050746,87966.0,87963.0,0.06821033]
[1769364504189,0.0004,87983.0,87968.0,1.13983111]
[1769364504424,0.0004,87983.0,87969.0,0.20238077]
[1769364504602,0.29662653,87980.0,87968.0,1.13983111]
[1769364504808,0.29662653,87980.0,87969.0,1.13983111]
[1769364505047,0.29662653,87980.0,87970.0,0.20238077]
[1769364506890,0.0004,87983.0,87970.0,0.20238077]
[1769364507065,0.29662653,87980.0,87970.0,0.20238077]
[1769364512585,0.15776754,87987.0,87970.0,0.20238077]
[1769364512586,0.0002516,87987.0,87980.0,0.21374698]
[1769364512804,0.0002516,87987.0,87981.0,0.21374686]
[1769364513144,0.0002516,87987.0,87984.0,0.19021332]
[1769364513318,0.0002516,87987.0,87984.0,0.20157902]
[1769364513546,0.0002516,87987.0,87984.0,0.19021332]
[1769364515578,0.01,87984.0,87978.0,0.19021332]
[1769364515874,0.0004,87994.0,87980.0,0.01136621]
[1769364516066,0.29662653,87990.0,87981.0,0.01136609]
[1769364516303,0.00087247,87994.0,87981.0,0.01136609]
[1769364516304,0.00087247,87994.0,87983.0,0.01136583]
[1769364516505,0.00087247,87994.0,87984.0,0.0113657]
[1769364517300,0.00087247,87994.0,87983.0,0.20157915]
[1769364517469,0.00087247,87994.0,87984.0,0.0113657]
[1769364517685,0.00087247,87994.0,87983.0,0.19021332]
[1769364519828,1.10711224,87992.0,87983.0,0.19021332]